[Event "Top 12 FRA-chT 2017"]
[Site "Chartres"]
[Date "2017.05.25"]
[Round "8"]
[White "Dubois, Jean-Marie"]
[Black "Roos, Louis"]
[Result "0-1"]
[ECO "A91"]
[WhiteElo "2255"]
[BlackElo "2346"]
[Annotator "NA"]
[PlyCount "78"]
[EventDate "2017.??.??"]
[EventType "team-tourn"]
[EventCountry "FRA"]
[SourceTitle "playchess.com"]
[Source "ChessBase"]
[SourceQuality "1"]
[WhiteTeam "Montpellier"]
[BlackTeam "Strasbourg"]
[TimeControl "40/5400+30:1800+30"]

1. d4 {[%emt 0:00:00]} e6 {[%emt 0:02:14]} 2. c4 {[%emt 0:00:00]} f5 {[%emt 0:00:07]} 3. g3 {[%emt 0:01:54]} Nf6 {[%emt 0:01:46]} 4. Bg2 {[%emt 0:02:16]} Be7 {[%emt 0:00:10]} 5. Nc3 {[%emt 0:01:01]} O-O {[%emt 0:00:09]} 6. Nf3 {[%emt 0:05:53]} d6 {[%emt 0:00:30]} 7. O-O {[%emt 0:04:20]} a5 {[%emt 0:01:54]} 8. Qc2 {[%emt 0:02:19]} Nc6 {[%emt 0:00:08]} 9. Rd1 {[%emt 0:06:00]} Qe8 {[%emt 0:03:22]} 10. e4 {[%emt 0:09:07]} fxe4 {[%emt 0:34:59]} 11. Nxe4 {[%emt 0:02:39]} Nxe4 {[%emt 0:01:52]} 12. Qxe4 {[%emt 0:00:09]} Qh5 {[%emt 0:02:53]} 13. Be3 {[%emt 0:13:59]} e5 {[%emt 0:07:40]} 14. Ne1 {[%emt 0:10:30]} Kh8 {[%emt 0:01:34]} 15. dxe5 {[%emt 0:04:49]} dxe5 {[%emt 0:03:08]} 16. Qc2 {[%emt 0:08:47]} a4 {[%emt 0:01:53]} 17. a3 {[%emt 0:02:10]} Bg4 {[%emt 0:05:31]} 18. Rd2 {[%emt 0:02:25]} Ra6 {[%emt 0:04:19]} 19. Rd5 {[%emt 0:01:58]} Bf6 {[%emt 0:08:00]} 20. Nd3 {[%emt 0:01:19]} Bf5 {[%emt 0:04:17]} 21. Qd2 {[%emt 0:00:27]} Ne7 {[%emt 0:00:34]} 22. Bc5 {[%emt 0:05:16]} Nxd5 {[%emt 0:09:21]} 23. Bxf8 {[%emt 0:00:08]} Nb6 {[%emt 0:02:25]} 24. Nb4 {[%emt 0:08:47]} Ra8 {[%emt 0:01:08]} 25. Bc5 {[%emt 0:02:57]} Rd8 {[%emt 0:01:00]} 26. Qc3 {[%emt 0:02:34]} Rd1+ {[%emt 0:00:42]} 27. Rxd1 {[%emt 0:00:04]} Qxd1+ {[%emt 0:00:18]} 28. Bf1 {[%emt 0:00:03]} e4 {[%emt 0:00:57]} 29. Qc2 {[%emt 0:01:43]} Qxc2 {[%emt 0:00:32]} 30. Nxc2 {[%emt 0:00:03]} Bxb2 {[%emt 0:00:11]} 31. Be7 {[%emt 0:01:12]} Kg8 {[%emt 0:01:07]} 32. c5 {[%emt 0:00:31]} Nd5 {[%emt 0:00:17]} 33. Bc4 {[%emt 0:00:09]} c6 {[%emt 0:00:14]} 34. Kf1 {[%emt 0:00:49]} Kf7 {[%emt 0:00:17]} 35. Bg5 {[%emt 0:00:20]} Be6 {[%emt 0:00:23]} 36. Be2 {[%emt 0:00:38]} Nc3 {[%emt 0:00:32]} 37. Bd2 {[%emt 0:00:40]} Nxe2 {[%emt 0:00:26]} 38. Kxe2 {[%emt 0:00:07]} Bb3 {[%emt 0:00:18]} 39. Ne3 {[%emt 0:00:52]} Bxa3 {[%emt 0:00:16]} 0-1

[Event "Top 12 FRA-chT 2017"]
[Site "Chartres"]
[Date "2017.05.25"]
[Round "8"]
[White "Bollengier, Andreea"]
[Black "Choisy, Mathilde"]
[Result "1-0"]
[ECO "E66"]
[WhiteElo "2234"]
[BlackElo "2153"]
[Annotator "NA"]
[PlyCount "61"]
[EventDate "2017.??.??"]
[EventType "team-tourn"]
[EventCountry "FRA"]
[SourceTitle "playchess.com"]
[Source "ChessBase"]
[SourceQuality "1"]
[WhiteTeam "Nice Alekhine"]
[BlackTeam "Mulhouse Philidor"]
[TimeControl "40/5400+30:1800+30"]

1. c4 {[%emt 0:00:00]} Nf6 {[%emt 0:01:07]} 2. g3 {[%emt 0:00:00]} g6 {[%emt 0:00:00]} 3. Bg2 {[%emt 0:00:00]} Bg7 {[%emt 0:00:17]} 4. Nc3 {[%emt 0:02:07]} O-O {[%emt 0:01:32]} 5. Nf3 {[%emt 0:02:05]} d6 {[%emt 0:00:06]} 6. O-O {[%emt 0:00:08]} c5 {[%emt 0:00:18]} 7. d4 {[%emt 0:00:43]} Nc6 {[%emt 0:00:05]} 8. d5 {[%emt 0:03:57]} Na5 {[%emt 0:00:21]} 9. Nd2 {[%emt 0:00:30]} a6 {[%emt 0:00:59]} 10. Rb1 {[%emt 0:06:10]} Rb8 {[%emt 0:00:19]} 11. b3 {[%emt 0:02:50]} b5 {[%emt 0:01:29]} 12. Bb2 {[%emt 0:01:05]} Bh6 {[%emt 0:00:45]} 13. f4 {[%emt 0:13:43]} Ng4 {[%emt 0:07:39]} 14. Qc1 {[%emt 0:13:35]} Ne3 {[%emt 0:17:14]} 15. Rf3 {[%emt 0:00:22]} Nxg2 {[%emt 0:02:23]} 16. Kxg2 {[%emt 0:00:05]} bxc4 {[%emt 0:09:57]} 17. bxc4 {[%emt 0:00:27]} Bf5 {[%emt 0:10:50]} 18. e4 {[%emt 0:02:06]} Bg4 {[%emt 0:00:04]} 19. Rf2 {[%emt 0:07:55]} Qd7 {[%emt 0:06:12]} 20. Nd1 {[%emt 0:06:07]} Bxd1 {[%emt 0:01:37]} 21. Qxd1 {[%emt 0:00:37]} Bg7 {[%emt 0:02:39]} 22. Qc2 {[%emt 0:08:33]} Bxb2 {[%emt 0:03:40]} 23. Rxb2 {[%emt 0:00:27]} Rxb2 {[%emt 0:00:20]} 24. Qxb2 {[%emt 0:00:05]} Qa4 {[%emt 0:00:27]} 25. Qc3 {[%emt 0:06:42]} Qxa2 {[%emt 0:04:52]} 26. e5 {[%emt 0:01:18]} Rb8 {[%emt 0:11:31]} 27. exd6 {[%emt 0:02:35]} exd6 {[%emt 0:00:05]} 28. Ne4 {[%emt 0:04:57]} Qxc4 {[%emt 0:01:08]} 29. Nf6+ {[%emt 0:00:06]} Kh8 {[%emt 0:02:35]} 30. Qxa5 {[%emt 0:00:25]} Qd4 {[%emt 0:05:33]} 31. Qc7 {[%emt 0:02:07]} 1-0

[Event "Top 12 FRA-chT 2017"]
[Site "Chartres"]
[Date "2017.05.25"]
[Round "8"]
[White "Youssoupov, Moisse"]
[Black "Sharif, Mehrshad"]
[Result "1/2-1/2"]
[ECO "D00"]
[WhiteElo "2233"]
[BlackElo "2363"]
[Annotator "NA"]
[PlyCount "65"]
[EventDate "2017.??.??"]
[EventType "team-tourn"]
[EventCountry "FRA"]
[SourceTitle "playchess.com"]
[Source "ChessBase"]
[SourceQuality "1"]
[WhiteTeam "Montpellier"]
[BlackTeam "Strasbourg"]
[TimeControl "40/5400+30:1800+30"]

1. d4 {[%emt 0:00:00]} d5 {[%emt 0:01:27]} 2. Bf4 {[%emt 0:00:00]} c5 {[%emt 0:00:52]} 3. e3 {[%emt 0:00:02]} Nc6 {[%emt 0:00:23]} 4. c3 {[%emt 0:00:06]} Bf5 {[%emt 0:00:24]} 5. Nd2 {[%emt 0:00:37]} e6 {[%emt 0:00:39]} 6. Ngf3 {[%emt 0:00:03]} Bd6 {[%emt 0:02:24]} 7. Bg3 {[%emt 0:01:46]} Nge7 {[%emt 0:07:27]} 8. dxc5 {[%emt 0:11:58]} Bxc5 {[%emt 0:02:15]} 9. Be2 {[%emt 0:00:02]} O-O {[%emt 0:01:03]} 10. O-O {[%emt 0:02:53]} Bg6 {[%emt 0:09:49]} 11. Nh4 {[%emt 0:05:30]} a6 {[%emt 0:01:27]} 12. Nxg6 {[%emt 0:00:29]} hxg6 {[%emt 0:00:48]} 13. e4 {[%emt 0:01:05]} Bd6 {[%emt 0:03:05]} 14. exd5 {[%emt 0:04:49]} Nxd5 {[%emt 0:02:15]} 15. Ne4 {[%emt 0:01:25]} Bxg3 {[%emt 0:02:43]} 16. hxg3 {[%emt 0:00:16]} Qc7 {[%emt 0:09:50]} 17. Re1 {[%emt 0:04:35]} Rfd8 {[%emt 0:03:00]} 18. Qc1 {[%emt 0:00:05]} Rac8 {[%emt 0:03:00]} 19. a3 {[%emt 0:05:45]} Na5 {[%emt 0:07:54]} 20. Qg5 {[%emt 0:06:03]} b5 {[%emt 0:11:08]} 21. a4 {[%emt 0:03:46]} Nc4 {[%emt 0:01:09]} 22. axb5 {[%emt 0:05:16]} axb5 {[%emt 0:00:10]} 23. b3 {[%emt 0:04:06]} Nd6 {[%emt 0:00:47]} 24. Nxd6 {[%emt 0:01:24]} Qxd6 {[%emt 0:02:15]} 25. Bxb5 {[%emt 0:03:11]} Nxc3 {[%emt 0:06:02]} 26. Bc4 {[%emt 0:00:23]} Qd4 {[%emt 0:01:33]} 27. Qe3 {[%emt 0:10:22]} Qf6 {[%emt 0:04:04]} 28. Ra6 {[%emt 0:11:14]} Nd5 {[%emt 0:00:48]} 29. Qe4 {[%emt 0:01:59]} Qf5 {[%emt 0:04:18]} 30. Qh4 {[%emt 0:02:38]} Qf6 {[%emt 0:01:08]} 31. Qe4 {[%emt 0:00:50]} Qf5 {[%emt 0:00:16]} 32. Qh4 {[%emt 0:01:20]} Qf6 {[%emt 0:00:14]} 33. Qe4 {[%emt 0:03:19]} 1/2-1/2

[Event "Top 12 FRA-chT 2017"]
[Site "Chartres"]
[Date "2017.05.25"]
[Round "8"]
[White "Leconte, Maria"]
[Black "Congiu, Mathilde"]
[Result "1/2-1/2"]
[ECO "A43"]
[WhiteElo "2174"]
[BlackElo "2248"]
[Annotator "NA"]
[PlyCount "103"]
[EventDate "2017.??.??"]
[EventType "team-tourn"]
[EventCountry "FRA"]
[SourceTitle "playchess.com"]
[Source "ChessBase"]
[SourceQuality "1"]
[WhiteTeam "Saint Quentin"]
[BlackTeam "Bois-Colombes"]
[TimeControl "40/5400+30:1800+30"]

1. d4 {[%emt 0:00:00]} Nf6 {[%emt 0:01:05]} 2. Nf3 {[%emt 0:00:00]} c5 {[%emt 0:03:04]} 3. d5 {[%emt 0:03:29]} g6 {[%emt 0:03:01]} 4. Nc3 {[%emt 0:04:15]} Bg7 {[%emt 0:06:12]} 5. e4 {[%emt 0:00:19]} d6 {[%emt 0:03:13]} 6. h3 {[%emt 0:00:29]} O-O {[%emt 0:01:08]} 7. Be2 {[%emt 0:00:17]} b5 {[%emt 0:04:28]} 8. Bxb5 {[%emt 0:26:26]} Nxe4 {[%emt 0:02:23]} 9. Nxe4 {[%emt 0:00:08]} Qa5+ {[%emt 0:00:08]} 10. Nc3 {[%emt 0:01:19]} Bxc3+ {[%emt 0:00:22]} 11. bxc3 {[%emt 0:00:03]} Qxb5 {[%emt 0:00:16]} 12. Nd2 {[%emt 0:10:23]} c4 {[%emt 0:15:16]} 13. Qf3 {[%emt 0:08:43]} Nd7 {[%emt 0:08:10]} 14. Rb1 {[%emt 0:03:54]} Qa4 {[%emt 0:02:11]} 15. Rb2 {[%emt 0:00:32]} Nb6 {[%emt 0:05:12]} 16. h4 {[%emt 0:13:51]} Qd7 {[%emt 0:07:13]} 17. h5 {[%emt 0:02:27]} Qf5 {[%emt 0:02:08]} 18. Rh4 {[%emt 0:07:43]} Qxf3 {[%emt 0:06:05]} 19. Nxf3 {[%emt 0:00:13]} Bb7 {[%emt 0:04:46]} 20. hxg6 {[%emt 0:02:44]} hxg6 {[%emt 0:00:09]} 21. Bh6 {[%emt 0:00:47]} Rfb8 {[%emt 0:00:37]} 22. Kd2 {[%emt 0:05:37]} Bxd5 {[%emt 0:02:40]} 23. Rb1 {[%emt 0:00:51]} Nd7 {[%emt 0:06:34]} 24. Rbh1 {[%emt 0:00:29]} Bxf3 {[%emt 0:01:30]} 25. gxf3 {[%emt 0:01:22]} Ne5 {[%emt 0:01:00]} 26. R1h3 {[%emt 0:00:16]} f6 {[%emt 0:03:59]} 27. Be3 {[%emt 0:00:05]} Kf7 {[%emt 0:00:58]} 28. f4 {[%emt 0:00:29]} Nd7 {[%emt 0:01:33]} 29. Rh7+ {[%emt 0:01:40]} Ke6 {[%emt 0:00:46]} 30. Bd4 {[%emt 0:00:13]} Nb6 {[%emt 0:00:58]} 31. Re3+ {[%emt 0:02:04]} Kf5 {[%emt 0:00:06]} 32. Rexe7 {[%emt 0:00:18]} a5 {[%emt 0:03:30]} 33. Rc7 {[%emt 0:02:00]} Nd5 {[%emt 0:00:39]} 34. Rxc4 {[%emt 0:00:13]} Ra6 {[%emt 0:02:19]} 35. a4 {[%emt 0:00:35]} Nxf4 {[%emt 0:00:28]} 36. Rcc7 {[%emt 0:01:43]} d5 {[%emt 0:01:44]} 37. Ra7 {[%emt 0:00:39]} Re6 {[%emt 0:00:13]} 38. Be3 {[%emt 0:00:51]} Rb2 {[%emt 0:02:37]} 39. Rxa5 {[%emt 0:00:05]} Ra2 {[%emt 0:00:20]} 40. c4 {[%emt 0:00:56]} Rc6 {[%emt 0:30:45]} 41. Bxf4 {[%emt 0:14:26]} Kxf4 {[%emt 0:00:00]} 42. Rh4+ {[%emt 0:03:11]} Kf3 {[%emt 0:00:00]} 43. Rxd5 {[%emt 0:01:59]} Rxa4 {[%emt 0:00:00]} 44. Rd3+ {[%emt 0:01:09]} Kxf2 {[%emt 0:00:00]} 45. Rf4+ {[%emt 0:00:27]} Kg2 {[%emt 0:00:00]} 46. Rg4+ {[%emt 0:00:05]} Kh2 {[%emt 0:00:00]} 47. Rh4+ {[%emt 0:05:21]} Kg2 {[%emt 0:00:00]} 48. Rg4+ {[%emt 0:00:05]} Kh2 {[%emt 0:00:00]} 49. Rd8 {[%emt 0:00:30]} Kh3 {[%emt 0:00:00]} 50. Rxg6 {[%emt 0:00:11]} Raxc4 {[%emt 0:00:00]} 51. Rh8+ {[%emt 0:00:15]} Rh4 {[%emt 0:00:00]} 52. Rf8 {[%emt 0:01:58]} 1/2-1/2

[Event "Top 12 FRA-chT 2017"]
[Site "Chartres"]
[Date "2017.05.25"]
[Round "8"]
[White "Steil-Antoni, Fiona"]
[Black "Guichard, Pauline"]
[Result "1-0"]
[ECO "B06"]
[WhiteElo "2155"]
[BlackElo "2312"]
[Annotator "NA"]
[PlyCount "117"]
[EventDate "2017.??.??"]
[EventType "team-tourn"]
[EventCountry "FRA"]
[SourceTitle "playchess.com"]
[Source "ChessBase"]
[SourceQuality "1"]
[WhiteTeam "Vandoeuvre"]
[BlackTeam "Clichy"]
[TimeControl "40/5400+30:1800+30"]

1. e4 {[%emt 0:00:00]} g6 {[%emt 0:00:05]} 2. d4 {[%emt 0:00:00]} Bg7 {[%emt 0:00:04]} 3. Nf3 {[%emt 0:00:00]} d6 {[%emt 0:00:09]} 4. Bd3 {[%emt 0:00:13]} Nc6 {[%emt 0:02:40]} 5. c3 {[%emt 0:00:06]} e5 {[%emt 0:00:35]} 6. h3 {[%emt 0:03:34]} Nf6 {[%emt 0:02:27]} 7. O-O {[%emt 0:00:18]} O-O {[%emt 0:00:52]} 8. Re1 {[%emt 0:00:06]} h6 {[%emt 0:07:18]} 9. a4 {[%emt 0:00:57]} Nh5 {[%emt 0:02:32]} 10. Bc2 {[%emt 0:15:02]} exd4 {[%emt 0:05:29]} 11. cxd4 {[%emt 0:06:10]} Nb4 {[%emt 0:00:31]} 12. Bb3 {[%emt 0:03:11]} c5 {[%emt 0:07:51]} 13. Nc3 {[%emt 0:06:35]} b6 {[%emt 0:13:00]} 14. g4 {[%emt 0:04:50]} cxd4 {[%emt 0:19:40]} 15. Nxd4 {[%emt 0:01:16]} Qh4 {[%emt 0:05:39]} 16. gxh5 {[%emt 0:14:26]} Bxh3 {[%emt 0:00:18]} 17. Re3 {[%emt 0:24:26]} Be5 {[%emt 0:05:06]} 18. hxg6 {[%emt 0:04:59]} Bh2+ {[%emt 0:09:41]} 19. Kxh2 {[%emt 0:05:16]} Bg4+ {[%emt 0:00:48]} 20. Kg1 {[%emt 0:01:43]} Bxd1 {[%emt 0:00:08]} 21. Nxd1 {[%emt 0:00:33]} d5 {[%emt 0:04:58]} 22. Bd2 {[%emt 0:01:22]} a5 {[%emt 0:09:23]} 23. Bxb4 {[%emt 0:00:44]} axb4 {[%emt 0:00:03]} 24. Bxd5 {[%emt 0:00:17]} Ra5 {[%emt 0:00:24]} 25. gxf7+ {[%emt 0:00:44]} Rxf7 {[%emt 0:01:26]} 26. Nf5 {[%emt 0:03:16]} Qf4 {[%emt 0:00:58]} 27. Bxf7+ {[%emt 0:01:24]} Kxf7 {[%emt 0:00:06]} 28. b3 {[%emt 0:01:13]} Rc5 {[%emt 0:00:38]} 29. Nb2 {[%emt 0:00:01]} Qg5+ {[%emt 0:00:56]} 30. Rg3 {[%emt 0:01:05]} Qf6 {[%emt 0:00:48]} 31. Rb1 {[%emt 0:00:00]} Rc3 {[%emt 0:00:16]} 32. Nd3 {[%emt 0:01:30]} Qe6 {[%emt 0:01:07]} 33. Nxb4 {[%emt 0:00:37]} Rxg3+ {[%emt 0:00:06]} 34. Nxg3 {[%emt 0:00:12]} h5 {[%emt 0:00:09]} 35. Nd5 {[%emt 0:00:43]} Kf8 {[%emt 0:00:38]} 36. Re1 {[%emt 0:00:25]} h4 37. Nf5 {[%emt 0:00:03]} h3 {[%emt 0:01:38]} 38. Re3 {[%emt 0:00:55]} Qe5 {[%emt 0:00:32]} 39. Ng3 {[%emt 0:00:40]} Ke8 {[%emt 0:00:22]} 40. Kh2 {[%emt 0:00:32]} Qh8 {[%emt 0:30:36]} 41. Nf5 {[%emt 0:30:33]} Qb2 {[%emt 0:00:00]} 42. Rf3 {[%emt 0:00:00]} Qe2 {[%emt 0:00:00]} 43. Nh4 {[%emt 0:00:00]} Qf1 {[%emt 0:00:00]} 44. Nxb6 {[%emt 0:00:00]} Kd8 {[%emt 0:00:00]} 45. Nc4 {[%emt 0:00:00]} Kc7 {[%emt 0:00:00]} 46. e5 {[%emt 0:00:00]} Kd7 {[%emt 0:00:00]} 47. Ne3 {[%emt 0:00:00]} Qa1 {[%emt 0:00:00]} 48. Ng4 {[%emt 0:00:00]} Qe1 {[%emt 0:00:00]} 49. Rxh3 {[%emt 0:00:00]} Qe2 {[%emt 0:00:00]} 50. Rg3 {[%emt 0:00:00]} Ke6 {[%emt 0:00:00]} 51. Ng2 {[%emt 0:00:00]} Qd2 {[%emt 0:00:00]} 52. Re3 {[%emt 0:00:00]} Kf5 {[%emt 0:00:00]} 53. Kg3 {[%emt 0:00:00]} Qd1 {[%emt 0:00:00]} 54. f3 {[%emt 0:00:00]} Ke6 {[%emt 0:00:00]} 55. Nf4+ {[%emt 0:00:00]} Kf5 {[%emt 0:00:00]} 56. e6 {[%emt 0:00:00]} Qg1+ {[%emt 0:00:00]} 57. Ng2 {[%emt 0:00:00]} Qd1 {[%emt 0:01:53]} 58. e7 {[%emt 0:00:00]} Qd6+ {[%emt 0:00:16]} 59. Re5+ {[%emt 0:00:00]} 1-0

[Event "Top 12 FRA-chT 2017"]
[Site "Chartres"]
[Date "2017.05.25"]
[Round "8"]
[White "Aflalo, Sophie"]
[Black "Maisuradze, Nino"]
[Result "0-1"]
[ECO "A01"]
[WhiteElo "2135"]
[BlackElo "2260"]
[Annotator "NA"]
[PlyCount "78"]
[EventDate "2017.??.??"]
[EventType "team-tourn"]
[EventCountry "FRA"]
[SourceTitle "playchess.com"]
[Source "ChessBase"]
[SourceQuality "1"]
[WhiteTeam "Tremblay-En-France"]
[BlackTeam "Bischwiller"]
[TimeControl "40/5400+30:1800+30"]

1. b3 {[%emt 0:01:05]} d5 {[%emt 0:00:34]} 2. Bb2 {[%emt 0:00:08]} Nf6 {[%emt 0:02:08]} 3. e3 {[%emt 0:01:30]} c6 {[%emt 0:00:46]} 4. d3 {[%emt 0:08:40]} Bf5 {[%emt 0:15:19]} 5. Nd2 {[%emt 0:14:55]} Nbd7 {[%emt 0:00:30]} 6. f4 {[%emt 0:03:40]} Qc7 {[%emt 0:05:52]} 7. Qf3 {[%emt 0:06:41]} e6 {[%emt 0:07:59]} 8. h3 {[%emt 0:03:56]} h6 {[%emt 0:09:21]} 9. g4 {[%emt 0:03:45]} Bg6 {[%emt 0:02:14]} 10. O-O-O {[%emt 0:09:34]} Bb4 {[%emt 0:02:19]} 11. Kb1 {[%emt 0:03:04]} a5 {[%emt 0:02:19]} 12. c3 {[%emt 0:01:34]} Bd6 {[%emt 0:00:29]} 13. Rh2 {[%emt 0:09:38]} a4 {[%emt 0:00:17]} 14. Rf2 {[%emt 0:00:12]} Nc5 {[%emt 0:05:44]} 15. Kc2 {[%emt 0:07:12]} axb3+ {[%emt 0:00:57]} 16. axb3 {[%emt 0:00:05]} Ra2 {[%emt 0:02:39]} 17. Rb1 {[%emt 0:05:51]} O-O {[%emt 0:07:30]} 18. Qg2 {[%emt 0:00:14]} Qb6 {[%emt 0:05:40]} 19. f5 {[%emt 0:04:15]} Bh7 {[%emt 0:03:24]} 20. Ne2 {[%emt 0:01:18]} Be7 {[%emt 0:05:00]} 21. Nc1 {[%emt 0:02:05]} Raa8 {[%emt 0:01:50]} 22. h4 {[%emt 0:03:31]} Nfd7 {[%emt 0:03:46]} 23. Qg3 {[%emt 0:01:00]} Qd8 {[%emt 0:01:33]} 24. Nf3 {[%emt 0:02:05]} exf5 {[%emt 0:03:08]} 25. g5 {[%emt 0:00:41]} h5 {[%emt 0:01:32]} 26. Nd4 {[%emt 0:00:07]} g6 {[%emt 0:03:30]} 27. Nce2 {[%emt 0:00:15]} Qb8 {[%emt 0:02:04]} 28. Nf4 {[%emt 0:00:21]} Ne5 {[%emt 0:00:31]} 29. Be2 {[%emt 0:05:33]} Ng4 {[%emt 0:00:10]} 30. Bxg4 {[%emt 0:00:45]} fxg4 {[%emt 0:00:01]} 31. Rg2 {[%emt 0:01:10]} Bd6 {[%emt 0:00:44]} 32. Qf2 {[%emt 0:00:26]} Nd7 {[%emt 0:01:35]} 33. Nde2 {[%emt 0:00:21]} Ne5 {[%emt 0:01:53]} 34. Ng3 {[%emt 0:00:31]} Ra2 {[%emt 0:01:08]} 35. Ngxh5 {[%emt 0:00:49]} gxh5 {[%emt 0:00:07]} 36. e4 {[%emt 0:00:22]} Nxd3 {[%emt 0:01:25]} 37. Nxd3 {[%emt 0:00:32]} dxe4 {[%emt 0:00:12]} 38. c4 {[%emt 0:00:38]} exd3+ {[%emt 0:00:09]} 39. Kd1 {[%emt 0:00:03]} Be5 {[%emt 0:01:08]} 0-1

[Event "Top 12 FRA-chT 2017"]
[Site "Chartres"]
[Date "2017.05.25"]
[Round "8"]
[White "De Seroux, Camille"]
[Black "Marchadour, Emilie"]
[Result "0-1"]
[ECO "B40"]
[WhiteElo "2117"]
[BlackElo "2097"]
[Annotator "NA"]
[PlyCount "128"]
[EventDate "2017.??.??"]
[EventType "team-tourn"]
[EventCountry "FRA"]
[SourceTitle "playchess.com"]
[Source "ChessBase"]
[SourceQuality "1"]
[WhiteTeam "Grasse Echecs"]
[BlackTeam "Lisieux"]
[TimeControl "40/5400+30:1800+30"]

1. e4 {[%emt 0:00:00]} c5 {[%emt 0:00:03]} 2. Nf3 {[%emt 0:00:00]} e6 {[%emt 0:00:04]} 3. Nc3 {[%emt 0:00:00]} Nc6 {[%emt 0:00:55]} 4. Bb5 {[%emt 0:00:02]} Nd4 {[%emt 0:03:48]} 5. O-O {[%emt 0:00:18]} a6 {[%emt 0:00:34]} 6. Bd3 {[%emt 0:00:09]} Ne7 {[%emt 0:01:55]} 7. Nxd4 {[%emt 0:02:44]} cxd4 {[%emt 0:00:06]} 8. Ne2 {[%emt 0:00:08]} d5 {[%emt 0:05:52]} 9. exd5 {[%emt 0:22:42]} Nxd5 {[%emt 0:01:10]} 10. c3 {[%emt 0:01:17]} Bd6 {[%emt 0:19:16]} 11. Qa4+ {[%emt 0:11:46]} Bd7 {[%emt 0:02:11]} 12. Qxd4 {[%emt 0:01:45]} Qc7 {[%emt 0:00:33]} 13. Qh4 {[%emt 0:05:55]} g5 {[%emt 0:10:37]} 14. Qh6 {[%emt 0:08:06]} O-O-O {[%emt 0:02:08]} 15. Be4 {[%emt 0:02:33]} Ne7 {[%emt 0:03:58]} 16. d4 {[%emt 0:02:14]} f5 {[%emt 0:01:14]} 17. Bd3 {[%emt 0:08:52]} Rdg8 {[%emt 0:02:15]} 18. c4 {[%emt 0:03:44]} Rg6 {[%emt 0:00:56]} 19. Qh3 {[%emt 0:02:57]} g4 {[%emt 0:13:51]} 20. Qh4 {[%emt 0:01:06]} Nc6 {[%emt 0:03:36]} 21. c5 {[%emt 0:01:28]} Be7 {[%emt 0:00:06]} 22. Qg3 {[%emt 0:00:34]} Qd8 {[%emt 0:09:26]} 23. Bf4 {[%emt 0:07:19]} h5 {[%emt 0:00:58]} 24. Qe3 {[%emt 0:02:28]} Nb4 {[%emt 0:01:30]} 25. Nc3 {[%emt 0:04:22]} Nxd3 {[%emt 0:03:59]} 26. Qxd3 {[%emt 0:00:06]} Bc6 {[%emt 0:00:09]} 27. Rad1 {[%emt 0:02:57]} Bd5 {[%emt 0:09:50]} 28. Qe3 {[%emt 0:02:57]} Bf6 {[%emt 0:00:36]} 29. Rfe1 {[%emt 0:00:48]} Qd7 {[%emt 0:02:10]} 30. Nxd5 {[%emt 0:02:07]} exd5 {[%emt 0:00:08]} 31. Qe6 {[%emt 0:00:36]} Rhg8 {[%emt 0:00:30]} 32. Qxd7+ {[%emt 0:03:02]} Kxd7 {[%emt 0:00:07]} 33. Be5 {[%emt 0:00:18]} Bd8 {[%emt 0:01:17]} 34. Rd3 {[%emt 0:00:36]} b6 {[%emt 0:00:39]} 35. b4 {[%emt 0:00:30]} Kc6 {[%emt 0:00:31]} 36. Rc1 {[%emt 0:00:53]} Re8 {[%emt 0:00:27]} 37. Rdc3 {[%emt 0:00:29]} Bg5 {[%emt 0:00:28]} 38. R1c2 {[%emt 0:00:24]} Bf4 {[%emt 0:00:48]} 39. Re2 {[%emt 0:00:44]} Rge6 {[%emt 0:00:34]} 40. g3 {[%emt 0:00:30]} Bxe5 {[%emt 0:30:20]} 41. cxb6+ {[%emt 0:04:16]} Kxb6 {[%emt 0:00:00]} 42. Rce3 {[%emt 0:05:09]} Kb5 {[%emt 0:00:00]} 43. Rxe5 {[%emt 0:03:26]} Rxe5 {[%emt 0:00:00]} 44. Rxe5 {[%emt 0:02:09]} Rd8 {[%emt 0:00:00]} 45. Rxf5 {[%emt 0:03:05]} Kxb4 {[%emt 0:00:00]} 46. Rxh5 {[%emt 0:09:12]} Ka3 {[%emt 0:00:00]} 47. Rg5 {[%emt 0:01:37]} Kxa2 {[%emt 0:00:00]} 48. Rxg4 {[%emt 0:01:10]} Kb3 {[%emt 0:00:00]} 49. Rg7 {[%emt 0:02:30]} Ra8 {[%emt 0:00:00]} 50. h4 {[%emt 0:01:34]} a5 {[%emt 0:00:00]} 51. h5 {[%emt 0:00:44]} a4 {[%emt 0:00:00]} 52. g4 {[%emt 0:01:02]} a3 {[%emt 0:00:00]} 53. Re7 {[%emt 0:00:27]} a2 {[%emt 0:00:00]} 54. Re1 {[%emt 0:00:10]} a1=Q {[%emt 0:00:00]} 55. Rxa1 {[%emt 0:00:04]} Rxa1+ {[%emt 0:00:00]} 56. Kg2 {[%emt 0:00:08]} Kc4 {[%emt 0:00:00]} 57. g5 {[%emt 0:00:28]} Kxd4 {[%emt 0:00:00]} 58. f4 {[%emt 0:01:28]} Ke4 {[%emt 0:00:00]} 59. g6 {[%emt 0:00:25]} Kf5 {[%emt 0:00:00]} 60. Kf3 {[%emt 0:00:54]} Re1 {[%emt 0:00:00]} 61. g7 {[%emt 0:00:29]} Re8 {[%emt 0:00:00]} 62. h6 {[%emt 0:00:29]} Kg6 {[%emt 0:00:00]} 63. f5+ {[%emt 0:00:26]} Kxh6 {[%emt 0:00:00]} 64. f6 {[%emt 0:00:08]} Kg6 {[%emt 0:00:00]} 0-1